fUST/lending_fUST_20240723
["ID","MTS","AMOUNT","RATE_DAILY","PERIOD"]
[332928297,1721681480543,-562.75,0.00017808,2]
[332928298,1721681480553,-607.77,0.00017808,2]
[332928299,1721681480562,-211.83,0.00017808,2]
[332928300,1721681480571,-500.0,0.00017808,2]
[332928301,1721681480580,-500.0,0.00017808,2]
[332928302,1721681480590,-809.09,0.00017808,2]
[332928303,1721681480599,-500.0,0.00017808,2]
[332928304,1721681480609,-500.0,0.00017808,2]
[332928305,1721681480618,-740.31,0.00017808,2]
[332928306,1721681480627,-941.88,0.00017808,2]
[332928307,1721681480637,-1442.48,0.00017808,2]
[332928308,1721681480646,-2358.94,0.00017808,2]
[332928309,1721681480655,-667.65,0.00017808,2]
[332928310,1721681480664,-500.0,0.00017808,2]
[332928311,1721681480673,-500.0,0.00017808,2]
[332928312,1721681480682,-500.0,0.00017808,2]
[332928313,1721681480691,-524.14,0.00017808,2]
[332928314,1721681480702,-615.18,0.00017808,2]
[332928315,1721681480711,-2089.36,0.00017808,2]
[332928316,1721681480720,-652.17,0.00017808,2]
[332928317,1721681480730,-502.56,0.00017808,2]
[332928318,1721681480852,-1234.39,0.00017808,2]
[332928319,1721681480862,-500.0,0.00017808,2]
[332928320,1721681480871,-600.8,0.00017808,2]
[332928321,1721681480880,-784.16,0.00017808,2]
[332928322,1721681480890,-570.88,0.00017808,2]
[332928323,1721681480900,-500.0,0.00017808,2]
[332928324,1721681480910,-962.14,0.00017808,2]
[332928325,1721681480919,-978.53,0.00017808,2]
[332928326,1721681480929,-500.0,0.00017808,2]
[332928327,1721681480938,-696.68,0.00017808,2]
[332928328,1721681480948,-1096.52,0.00017808,2]
[332928329,1721681480957,-500.0,0.00017808,2]
[332928330,1721681480966,-500.0,0.00017808,2]
[332928331,1721681480976,-637.7,0.00017808,2]
[332928332,1721681480985,-500.0,0.00017808,2]
[332928333,1721681480993,-500.0,0.00017808,2]
[332928334,1721681481003,-151.0,0.00017808,2]
[332928335,1721681481013,-500.0,0.00017808,2]
[332928336,1721681481023,-500.0,0.00017808,2]
[332928337,1721681481032,-500.0,0.00017808,2]
[332928338,1721681481041,-500.0,0.00017808,2]
[332928339,1721681481050,-1030.13,0.00017808,2]
[332928340,1721681481059,-552.23,0.00017808,2]
[332928341,1721681481068,-500.0,0.00017808,2]
[332928342,1721681481077,-524.6,0.00017808,2]
[332928343,1721681481086,-819.36,0.00017808,2]
[332928344,1721681481096,-151.0,0.00017808,2]
[332928345,1721681481105,-500.0,0.00017808,2]
[332928346,1721681481114,-500.0,0.00017808,2]
[332928347,1721681481123,-500.0,0.00017808,2]
[332928348,1721681481133,-500.0,0.00017808,2]
[332928349,1721681481141,-511.3,0.00017808,2]
[332928350,1721681481151,-500.0,0.00017808,2]
[332928351,1721681481160,-500.0,0.00017808,2]
[332928352,1721681481169,-500.0,0.00017808,2]
[332928353,1721681481178,-500.0,0.00017808,2]
[332928354,1721681481188,-337.05,0.00017808,2]
[332928355,1721681481202,-500.0,0.00017808,2]
[332928356,1721681481211,-500.0,0.00017808,2]
[332928357,1721681481222,-578.99,0.00017808,2]
[332928358,1721681481232,-454.37,0.00017808,2]
[332928359,1721681481242,-500.0,0.00017808,2]
[332928360,1721681481252,-500.0,0.00017808,2]
[332928361,1721681481262,-163.4,0.00017808,2]
[332928362,1721681481274,-416.9,0.00017808,2]
[332928363,1721681481284,-156.820474,0.00017808,2]
[332928364,1721681481295,-196.48811,0.00017808,2]
[332928365,1721681481306,-156.820474,0.00017808,2]
[332928366,1721681481318,-196.48811,0.00017808,2]
[332928367,1721681481327,-242.858996,0.00017808,2]
[332928368,1721681481336,-224.50165,0.00017808,2]
[332928369,1721681481345,-224.50165,0.00017808,2]
[332928370,1721681481354,-151.0,0.00017808,2]
[332928371,1721681481363,-151.0,0.00017808,2]
[332928372,1721681481373,-151.0,0.00017808,2]
[332928373,1721681481382,-413.095847,0.00017808,2]
[332928374,1721681481392,-620.00019924,0.00017835,2]
[332928375,1721681481401,-151.0,0.0001784,2]
[332928376,1721681481410,-600.0,0.00017952,2]
[332928377,1721681481419,-600.0,0.00017963,2]
[332928378,1721681481430,-166.666666,0.00017977,2]
[332928379,1721681481439,-123395.89224571,0.00018,10]
[332928380,1721681481455,-1737.76934967,0.00018,10]
[332928381,1721681531646,273.37336231,9.9e-05,2]
[332928382,1721681539463,273.37336231,9.9e-05,2]
[332928384,1721682349138,-154.71377951,9.9e-05,2]
[332928385,1721682349163,-300.0,9.998e-05,2]
[332928386,1721682349189,-160.0,9.998e-05,2]
[332928387,1721682349212,-250.34989462,9.999e-05,2]
[332928388,1721682349233,-207.27243247,9.999e-05,2]
[332928389,1721682349256,-156.64447961,9.999e-05,2]
[332928390,1721682349280,-156.43671221,9.999e-05,2]
[332928391,1721682349303,-663.51231387,9.999e-05,2]
[332928392,1721682349325,-135.8432057,9.999e-05,2]
[332928393,1721682446097,-18.87057381,9.999e-05,2]
[332928394,1721682446121,-219.5494899,9.999e-05,2]
[332928395,1721682451101,-628.91158167,9.999e-05,2]
[332928396,1721682451122,-726.7153245,9.999e-05,2]
[332928397,1721682451144,-341.66678597,9.999e-05,2]
[332928398,1721682451165,-154.71377951,9.999e-05,2]
[332928399,1721682451186,-154.71377951,9.999e-05,2]
[332928400,1721682451207,-154.71377951,9.999e-05,2]
[332928401,1721682451228,-531.29167136,9.999e-05,2]
[332928402,1721682451250,-154.71377951,9.999e-05,2]
[332928403,1721682451271,-663.51231387,9.999e-05,2]
[332928404,1721682451292,-262.8576062,9.999e-05,2]
[332928405,1721682451314,-994.32496375,0.0001,2]
[332928406,1721682451335,-250.0,0.00010057,2]
[332928407,1721682451356,-250.0,0.00010085,2]
[332928408,1721682451378,-250.0,0.00010112,2]
[332928409,1721682451399,-250.0,0.00010121,2]
[332928410,1721682451421,-250.0,0.0001014,2]
[332928411,1721682451442,-250.0,0.00010167,2]
[332928412,1721682451463,-250.0,0.00010195,2]
[332928413,1721682451488,-250.0,0.00010223,2]
[332928414,1721682451510,-250.0,0.0001025,2]
[332928415,1721682451532,-250.0,0.00010278,2]
[332928416,1721682451553,-250.0,0.00010305,2]
[332928417,1721682451578,-250.0,0.00010333,2]
[332928418,1721682451600,-250.0,0.0001036,2]
[332928419,1721682451621,-250.0,0.00010388,2]
[332928420,1721682451642,-250.0,0.00010416,2]
[332928421,1721682451663,-250.0,0.00010443,2]
[332928422,1721682451685,-250.0,0.00010471,2]
[332928423,1721682451706,-250.0,0.00010498,2]
[332928424,1721682451730,-542.1301282,0.00010512,2]
[332928425,1721682451753,-250.0,0.00010526,2]
[332928426,1721682451775,-250.0,0.00010554,2]
[332928427,1721682451797,-250.0,0.00010581,2]
[332928428,1721682451819,-15042.04528407,0.00011712,2]
[332928429,1721682556379,-156.43671221,9.999e-05,2]
[332928430,1721682556403,-279.33512458,9.999e-05,2]
[332928431,1721682556425,-726.7153245,9.999e-05,2]
[332928432,1721682556444,-155.32356899,9.999e-05,2]
[332928433,1721682556466,-156.19495663,9.999e-05,2]
[332928434,1721682556486,-157.48337962,9.999e-05,2]
[332928435,1721682556509,-341.66678597,9.999e-05,2]
[332928436,1721682556535,-154.71377951,0.00011712,2]
[332928437,1721682556558,-9857.95471593,0.00011712,2]
[332928438,1721682556579,-1186.21988911,0.000118,2]
[332928439,1721682556603,-1110.37652965,0.000119,2]
[332928440,1721682561108,-243.89313893,9.999e-05,2]
[332928441,1721682561132,-848.46107157,9.999e-05,2]
[332928442,1721682561156,-994.32496375,0.0001,2]
[332928443,1721682561178,-79.29552436,0.000119,2]
[332928444,1721682561200,-113977.75662139,0.000119,2]
[332928445,1721682561230,-96146.57525351,0.000119,2]
[332928446,1721682570125,-154.71377951,9.999e-05,2]
[332928447,1721682570147,-663.51231387,9.999e-05,2]
[332928448,1721682570170,-16232.345167,0.000119,2]
[332928449,1721682572085,-130116.21277667,9.899e-05,2]
[332928450,1721682573088,-351755.31622495,9.899e-05,2]
[332928451,1721682573120,-176710.20363849,9.899e-05,2]
[332928497,1721682632615,-300.0,9.898e-05,2]
[332928499,1721682632626,-154.71377951,9.999e-05,2]
[332928501,1721682632637,-663.51231387,9.999e-05,2]
[332928503,1721682632651,-8680.41273576,0.000119,2]
[332928505,1721682632663,-104473.33308234,0.000119,2]
[332928507,1721682632672,-154.77969924,0.00011999,2]
[332928509,1721682632682,-256.84490247,0.00012119,2]
[332928511,1721682632691,-33102.40776603,0.0001212,2]
[332928589,1721682638773,-694.51768223,0.00011999,2]
[332928590,1721682638791,-153.94338934,0.00011999,2]
[332928591,1721682638801,-4628.68179879,0.0001212,2]
[332928592,1721682638814,-4646.51215197,0.0001212,2]
[332928593,1721682638828,-69651.30744498,0.0001212,2]
[332928594,1721682638838,-1186.21988909,0.0001225,2]
[332928595,1721682638850,-1186.21988909,0.00012699,2]
[332928596,1721682638861,-203.43939974,0.00012742,2]
[332928597,1721682638872,-1889.78753682,0.000129,2]
[332928598,1721682638882,-1889.78753682,0.000129,2]
[332928599,1721682638893,-1186.21988909,0.00013149,2]
[332928600,1721682638904,-200.0,0.00013425,2]
[332928601,1721682638914,-191.39765408,0.00013488,2]
[332928602,1721682638924,-1186.21988909,0.00013598,2]
[332928603,1721682638934,-736.75996205,0.00013598,2]
[332928604,1721682638944,-637.7,0.00013698,2]
[332928605,1721682638955,-502.35351957,0.00013698,2]
[332928606,1721682638966,-500.0,0.00013698,2]
[332928607,1721682638976,-500.0,0.00013698,2]
[332928608,1721682638985,-500.0,0.00013698,2]
[332928609,1721682638996,-500.0,0.00013698,2]
[332928610,1721682639007,-500.0,0.00013698,2]
[332928611,1721682639018,-500.0,0.00013698,2]
[332928612,1721682639030,-500.0,0.00013698,2]
[332928613,1721682639040,-570.88,0.00013698,2]
[332928614,1721682639050,-500.0,0.00013698,2]
[332928615,1721682639059,-500.0,0.00013698,2]
[332928616,1721682639069,-500.0,0.00013698,2]
[332928617,1721682639079,-500.0,0.00013698,2]
[332928618,1721682639089,-500.0,0.00013698,2]
[332928619,1721682639098,-500.0,0.00013698,2]
[332928620,1721682639108,-500.0,0.00013698,2]
[332928621,1721682639117,-500.0,0.00013698,2]
[332928622,1721682639126,-500.0,0.00013698,2]
[332928623,1721682639135,-500.0,0.00013698,2]
[332928624,1721682639145,-500.0,0.00013698,2]
[332928625,1721682639154,-500.0,0.00013698,2]
[332928626,1721682639165,-500.0,0.00013698,2]
[332928627,1721682639177,-500.0,0.00013698,2]
[332928628,1721682639186,-500.0,0.00013698,2]
[332928629,1721682639195,-1737.9,0.00013698,2]
[332928630,1721682639205,-267.88663613,0.00013698,2]
[332928631,1721682639215,-500.0,0.00013698,2]
[332928632,1721682639224,-500.0,0.00013698,2]
[332928633,1721682639234,-519.91213025,0.00013698,2]
[332928634,1721682639245,-500.0,0.00013698,2]
[332928635,1721682639255,-500.0,0.00013698,2]
[332928636,1721682639265,-552.23,0.00013698,2]
[332928637,1721682639275,-500.0,0.00013698,2]
[332928638,1721682639285,-500.0,0.00013698,2]
[332928639,1721682639296,-500.0,0.00013698,2]
[332928640,1721682639308,-500.0,0.00013698,2]
[332928641,1721682639320,-500.0,0.00013698,2]
[332928642,1721682639330,-500.0,0.00013698,2]
[332928643,1721682639340,-510.81,0.00013698,2]
[332928644,1721682639351,-500.0,0.00013698,2]
[332928645,1721682639362,-500.0,0.00013698,2]
[332928646,1721682639373,-500.0,0.00013698,2]
[332928647,1721682639384,-500.0,0.00013698,2]
[332928648,1721682639395,-500.0,0.00013698,2]
[332928649,1721682639405,-724.08,0.00013698,2]
[332928650,1721682639415,-501.8269639,0.00013698,2]
[332928651,1721682639424,-500.0,0.00013698,2]
[332928652,1721682639435,-500.0,0.00013698,2]
[332928653,1721682639446,-500.0,0.00013698,2]
[332928654,1721682639457,-500.0,0.00013698,2]
[332928655,1721682639467,-500.0,0.00013698,2]
[332928656,1721682639478,-500.0,0.00013698,2]
[332928657,1721682639487,-500.0,0.00013698,2]
[332928658,1721682639498,-1542.13,0.00013698,2]
[332928659,1721682639509,-500.0,0.00013698,2]
[332928660,1721682639520,-647.68,0.00013698,2]
[332928661,1721682639533,-500.0,0.00013698,2]
[332928662,1721682639548,-500.0,0.00013698,2]
[332928663,1721682639559,-500.0,0.00013698,2]
[332928664,1721682639568,-500.0,0.00013698,2]
[332928665,1721682639579,-500.0,0.00013698,2]
[332928666,1721682639590,-500.0,0.00013698,2]
[332928667,1721682639600,-594.58,0.00013698,2]
[332928668,1721682639610,-500.0,0.00013698,2]
[332928669,1721682639622,-500.0,0.00013698,2]
[332928670,1721682639633,-500.0,0.00013698,2]
[332928671,1721682639644,-500.0,0.00013698,2]
[332928672,1721682639655,-500.0,0.00013698,2]
[332928673,1721682639666,-500.0,0.00013698,2]
[332928674,1721682639677,-500.0,0.00013698,2]
[332928675,1721682639688,-500.0,0.00013698,2]
[332928676,1721682639699,-500.0,0.00013698,2]
[332928677,1721682639709,-500.0,0.00013698,2]
[332928678,1721682639719,-500.0,0.00013698,2]
[332928679,1721682639729,-500.0,0.00013698,2]
[332928680,1721682639739,-500.0,0.00013698,2]
[332928681,1721682639749,-500.0,0.00013698,2]
[332928682,1721682639758,-500.0,0.00013698,2]
[332928683,1721682639768,-500.0,0.00013698,2]
[332928684,1721682639778,-500.0,0.00013698,2]
[332928685,1721682639787,-500.0,0.00013698,2]
[332928686,1721682639796,-500.0,0.00013698,2]
[332928687,1721682639806,-500.0,0.00013698,2]
[332928688,1721682639815,-500.0,0.00013698,2]
[332928689,1721682639824,-1506.88,0.00013698,2]
[332928690,1721682639834,-500.0,0.00013698,2]
[332928691,1721682639843,-3642.92,0.00013698,2]
[332928693,1721682639853,-500.0,0.00013698,2]
[332928694,1721682639862,-500.0,0.00013698,2]
[332928695,1721682639872,-500.0,0.00013698,2]
[332928696,1721682639881,-500.0,0.00013698,2]
[332928697,1721682639891,-500.0,0.00013698,2]
[332928698,1721682639902,-960.23,0.00013698,2]
[332928700,1721682639912,-500.0,0.00013698,2]
[332928702,1721682639921,-500.0,0.00013698,2]
[332928703,1721682639931,-500.0,0.00013698,2]
[332928704,1721682639940,-500.0,0.00013698,2]
[332928705,1721682639950,-500.0,0.00013698,2]
[332928706,1721682639961,-500.0,0.00013698,2]
[332928707,1721682639971,-500.0,0.00013698,2]
[332928708,1721682639981,-500.0,0.00013698,2]
[332928709,1721682639990,-500.0,0.00013698,2]
[332928714,1721682640188,-500.0,0.00013698,2]
[332928715,1721682640200,-259.59583348,0.00013698,2]
[332928716,1721682640210,-500.0,0.00013698,2]
[332928717,1721682640219,-500.0,0.00013698,2]
[332928718,1721682640229,-500.0,0.00013698,2]
[332928719,1721682640239,-500.0,0.00013698,2]
[332928720,1721682640248,-500.0,0.00013698,2]
[332928721,1721682640259,-500.0,0.00013698,2]
[332928722,1721682640268,-500.0,0.00013698,2]
[332928723,1721682640277,-3696.5,0.00013698,2]
[332928724,1721682640286,-3696.5,0.00013698,2]
[332928725,1721682640295,-3696.5,0.00013698,2]
[332928726,1721682640304,-3696.5,0.00013698,2]
[332928727,1721682640314,-3696.5,0.00013698,2]
[332928728,1721682640324,-3696.5,0.00013698,2]
[332928729,1721682640336,-3696.5,0.00013698,2]
[332928730,1721682640346,-3696.5,0.00013698,2]
[332928731,1721682640355,-3696.5,0.00013698,2]
[332928732,1721682640364,-3696.5,0.00013698,2]
[332928733,1721682640375,-3696.5,0.00013698,2]
[332928734,1721682640383,-500.0,0.00013698,2]
[332928735,1721682640395,-3696.5,0.00013698,2]
[332928736,1721682640405,-3696.5,0.00013698,2]
[332928737,1721682640414,-3696.5,0.00013698,2]
[332928738,1721682640423,-3696.5,0.00013698,2]
[332928739,1721682640432,-500.0,0.00013698,2]
[332928740,1721682640442,-3696.5,0.00013698,2]
[332928741,1721682640451,-3696.5,0.00013698,2]
[332928742,1721682640460,-500.0,0.00013698,2]
[332928743,1721682640470,-3696.5,0.00013698,2]
[332928744,1721682640479,-3696.5,0.00013698,2]
[332928745,1721682640488,-3696.5,0.00013698,2]
[332928746,1721682640497,-3696.5,0.00013698,2]
[332928747,1721682640506,-3696.5,0.00013698,2]
[332928748,1721682640515,-3696.5,0.00013698,2]
[332928749,1721682640525,-3696.69838006,0.00013698,2]
[332928750,1721682640534,-500.0,0.00013698,2]
[332928751,1721682640547,-500.0,0.00013698,2]
[332928752,1721682640556,-500.0,0.00013698,2]
[332928753,1721682640566,-500.0,0.00013698,2]
[332928754,1721682640575,-500.0,0.00013698,2]
[332928755,1721682640585,-500.0,0.00013698,2]
[332928756,1721682640595,-500.0,0.00013698,2]
[332928757,1721682640604,-500.0,0.00013698,2]
[332928758,1721682640614,-500.0,0.00013698,2]
[332928759,1721682640623,-457.88231674,0.00013698,2]
[332928760,1721682640632,-500.0,0.00013698,2]
[332928761,1721682640641,-500.0,0.00013698,2]
[332928762,1721682640654,-500.0,0.00013698,2]
[332928763,1721682640663,-532.06,0.00013698,2]
[332928764,1721682640672,-500.0,0.00013698,2]
[332928765,1721682640681,-500.0,0.00013698,2]
[332928766,1721682640691,-500.0,0.00013698,2]
[332928767,1721682640700,-500.0,0.00013698,2]
[332928768,1721682640710,-500.0,0.00013698,2]
[332928769,1721682640719,-500.0,0.00013698,2]
[332928770,1721682640728,-500.0,0.00013698,2]
[332928771,1721682640737,-500.0,0.00013698,2]
[332928772,1721682640746,-500.0,0.00013698,2]
[332928773,1721682640756,-500.0,0.00013698,2]
[332928774,1721682640765,-500.0,0.00013698,2]
[332928775,1721682640775,-500.0,0.00013698,2]
[332928776,1721682640785,-500.0,0.00013698,2]
[332928777,1721682640795,-500.0,0.00013698,2]
[332928778,1721682640804,-500.0,0.00013698,2]
[332928779,1721682640814,-500.0,0.00013698,2]
[332928780,1721682640823,-511.37839314,0.00013698,2]
[332928781,1721682640833,-500.0,0.00013698,2]
[332928782,1721682640842,-500.0,0.00013698,2]
[332928783,1721682640851,-500.0,0.00013698,2]
[332928784,1721682640861,-500.0,0.00013698,2]
[332928785,1721682640871,-500.0,0.00013698,2]
[332928786,1721682640880,-500.0,0.00013698,2]
[332928787,1721682640890,-500.0,0.00013698,2]
[332928788,1721682640901,-500.0,0.00013698,2]
[332928789,1721682640911,-500.0,0.00013698,2]
[332928790,1721682640920,-500.0,0.00013698,2]
[332928791,1721682640930,-306.22,0.00013698,2]
[332928792,1721682640939,-500.0,0.00013698,2]
[332928793,1721682640949,-500.0,0.00013698,2]
[332928794,1721682640959,-500.0,0.00013698,2]
[332928795,1721682640969,-500.0,0.00013698,2]
[332928796,1721682640978,-500.0,0.00013698,2]
[332928797,1721682640988,-500.0,0.00013698,2]
[332928798,1721682640997,-500.0,0.00013698,2]
[332928799,1721682641008,-500.0,0.00013698,2]
[332928800,1721682641017,-500.0,0.00013698,2]
[332928801,1721682641026,-500.0,0.00013698,2]
[332928802,1721682641036,-500.0,0.00013698,2]
[332928803,1721682641046,-500.0,0.00013698,2]
[332928804,1721682641055,-500.0,0.00013698,2]
[332928805,1721682641065,-500.0,0.00013698,2]
[332928806,1721682641074,-500.0,0.00013698,2]
[332928807,1721682641084,-500.0,0.00013698,2]
[332928808,1721682641094,-500.0,0.00013698,2]
[332928809,1721682641104,-390.2806264,0.00013698,2]
[332928810,1721682641114,-500.0,0.00013698,2]
[332928811,1721682641124,-500.0,0.00013698,2]
[332928812,1721682641133,-500.0,0.00013698,2]
[332928813,1721682641143,-500.0,0.00013698,2]
[332928814,1721682641155,-500.0,0.00013698,2]
[332928815,1721682641165,-500.0,0.00013698,2]
[332928816,1721682641175,-500.0,0.00013698,2]
[332928817,1721682641184,-500.0,0.00013698,2]
[332928818,1721682641194,-500.0,0.00013698,2]
[332928819,1721682641203,-500.0,0.00013698,2]
[332928820,1721682641213,-500.0,0.00013698,2]
[332928821,1721682641223,-500.0,0.00013698,2]
[332928822,1721682641232,-500.0,0.00013698,2]
[332928823,1721682641242,-500.0,0.00013698,2]
[332928824,1721682641251,-500.0,0.00013698,2]
[332928825,1721682641261,-500.0,0.00013698,2]
[332928826,1721682641270,-500.0,0.00013698,2]
[332928827,1721682641279,-500.0,0.00013698,2]
[332928828,1721682641289,-500.0,0.00013698,2]
[332928829,1721682641298,-613.68437412,0.00013698,2]
[332928830,1721682641308,-500.0,0.00013698,2]
[332928831,1721682641317,-500.0,0.00013698,2]
[332928832,1721682641329,-500.0,0.00013698,2]
[332928833,1721682641340,-500.0,0.00013698,2]
[332928834,1721682641350,-500.0,0.00013698,2]
[332928835,1721682641360,-500.0,0.00013698,2]
[332928836,1721682641370,-500.0,0.00013698,2]
[332928837,1721682641380,-500.0,0.00013698,2]
[332928838,1721682641390,-500.0,0.00013698,2]
[332928839,1721682641404,-500.0,0.00013698,2]
[332928840,1721682641413,-500.0,0.00013698,2]
[332928841,1721682641423,-500.0,0.00013698,2]
[332928842,1721682641433,-500.0,0.00013698,2]
[332928843,1721682641442,-500.0,0.00013698,2]
[332928844,1721682641452,-500.0,0.00013698,2]
[332928845,1721682641462,-500.0,0.00013698,2]
[332928846,1721682641472,-500.0,0.00013698,2]
[332928847,1721682641482,-500.0,0.00013698,2]
[332928848,1721682641492,-500.0,0.00013698,2]
[332928849,1721682641502,-500.0,0.00013698,2]
[332928850,1721682641512,-500.0,0.00013698,2]
[332928851,1721682641522,-500.0,0.00013698,2]
[332928852,1721682641534,-500.0,0.00013698,2]
[332928853,1721682641549,-500.0,0.00013698,2]
[332928854,1721682641558,-500.0,0.00013698,2]
[332928855,1721682641568,-500.0,0.00013698,2]
[332928856,1721682641581,-500.0,0.00013698,2]
[332928857,1721682641591,-500.0,0.00013698,2]
[332928858,1721682641602,-500.0,0.00013698,2]
[332928859,1721682641612,-500.0,0.00013698,2]
[332928860,1721682641623,-500.0,0.00013698,2]
[332928861,1721682641634,-500.0,0.00013698,2]
[332928862,1721682641644,-500.0,0.00013698,2]
[332928863,1721682641655,-500.0,0.00013698,2]
[332928864,1721682641666,-500.0,0.00013698,2]
[332928865,1721682641677,-500.0,0.00013698,2]
[332928866,1721682641687,-500.0,0.00013698,2]
[332928867,1721682641698,-500.0,0.00013698,2]
[332928868,1721682641709,-500.0,0.00013698,2]
[332928869,1721682641720,-500.0,0.00013698,2]
[332928870,1721682641729,-500.0,0.00013698,2]
[332928871,1721682641740,-500.0,0.00013698,2]
[332928872,1721682641750,-500.0,0.00013698,2]
[332928873,1721682641761,-500.0,0.00013698,2]
[332928874,1721682641772,-500.0,0.00013698,2]
[332928875,1721682641783,-500.0,0.00013698,2]
[332928876,1721682641793,-500.0,0.00013698,2]
[332928877,1721682641803,-500.0,0.00013698,2]
[332928878,1721682641812,-500.0,0.00013698,2]
[332928879,1721682641824,-500.0,0.00013698,2]
[332928880,1721682641835,-343.67415429,0.00013698,2]
[332928881,1721682641845,-503.79765142,0.00013698,2]
[332928882,1721682641856,-500.0,0.00013698,2]
[332928883,1721682641866,-500.0,0.00013698,2]
[332928884,1721682641877,-500.0,0.00013698,2]
[332928885,1721682641886,-733.87,0.00013698,2]
[332928886,1721682641898,-500.0,0.00013698,2]
[332928887,1721682641908,-500.0,0.00013698,2]
[332928888,1721682641918,-500.0,0.00013698,2]
[332928889,1721682641928,-500.0,0.00013698,2]
[332928890,1721682641938,-500.0,0.00013698,2]
[332928891,1721682641947,-500.0,0.00013698,2]
[332928892,1721682641957,-500.0,0.00013698,2]
[332928893,1721682641967,-500.0,0.00013698,2]
[332928894,1721682641977,-500.0,0.00013698,2]
[332928895,1721682641986,-500.0,0.00013698,2]
[332928896,1721682641997,-500.0,0.00013698,2]
[332928897,1721682642007,-500.0,0.00013698,2]
[332928898,1721682642018,-500.0,0.00013698,2]
[332928899,1721682642031,-500.0,0.00013698,2]
[332928900,1721682642042,-500.0,0.00013698,2]
[332928901,1721682642053,-500.0,0.00013698,2]
[332928902,1721682642062,-500.0,0.00013698,2]
[332928904,1721682642072,-500.0,0.00013698,2]
[332928905,1721682642082,-500.0,0.00013698,2]
[332928906,1721682642093,-500.0,0.00013698,2]
[332928907,1721682642102,-500.0,0.00013698,2]
[332928908,1721682642112,-500.0,0.00013698,2]
[332928909,1721682642122,-500.0,0.00013698,2]
[332928911,1721682642131,-500.0,0.00013698,2]
[332928912,1721682642141,-500.0,0.00013698,2]
[332928914,1721682642153,-173.50801192,0.00013698,2]
[332928916,1721682642163,-500.0,0.00013698,2]
[332928917,1721682642172,-500.0,0.00013698,2]
[332928918,1721682642184,-621.4352851,0.00013698,2]
[332928920,1721682642194,-646.41947755,0.00013698,2]
[332928921,1721682642203,-500.0,0.00013698,2]
[332928923,1721682642212,-500.0,0.00013698,2]
[332928924,1721682642222,-500.0,0.00013698,2]
[332928925,1721682642232,-500.0,0.00013698,2]
[332928926,1721682642242,-500.0,0.00013698,2]
[332928927,1721682642252,-500.0,0.00013698,2]
[332928929,1721682642262,-500.0,0.00013698,2]
[332928930,1721682642273,-500.0,0.00013698,2]
[332928931,1721682642283,-500.0,0.00013698,2]
[332928932,1721682642294,-500.0,0.00013698,2]
[332928933,1721682642305,-500.0,0.00013698,2]
[332928935,1721682642315,-500.0,0.00013698,2]
[332928936,1721682642326,-500.0,0.00013698,2]
[332928937,1721682642336,-500.0,0.00013698,2]
[332928938,1721682642345,-500.0,0.00013698,2]
[332928939,1721682642355,-500.0,0.00013698,2]
[332928940,1721682642365,-500.0,0.00013698,2]
[332928942,1721682642375,-500.0,0.00013698,2]